fUSD/lending_fUSD_20251017
["ID","MTS","AMOUNT","RATE_DAILY","PERIOD"]
[391707520,1760737845610,-500.0,0.00036589,2]
[391707522,1760737845621,-500.0,0.00036644,2]
[391707524,1760737845630,-500.0,0.00036699,2]
[391707527,1760737845639,-500.0,0.00036753,2]
[391707530,1760737845648,-499.19222072,0.00036808,2]
[391707533,1760737845657,-1023.84172454,0.00036951,28]
[391707536,1760737845666,-151.0,0.00036987,14]
[391707539,1760737845675,-11097.9012336,0.0003699,3]
[391707541,1760737845684,-1000.0,0.00037,2]
[391707543,1760737845694,-1000.0,0.00037,2]
[391707545,1760737845703,-1000.0,0.00037,2]
[391707547,1760737845712,-1000.0,0.00037,2]
[391707548,1760737845722,-1000.0,0.00037,2]
[391707550,1760737845731,-1000.0,0.00037,2]
[391707552,1760737845740,-1000.0,0.00037,2]
[391707554,1760737845749,-1000.0,0.00037,2]
[391707557,1760737845758,-1000.0,0.00037,2]
[391707559,1760737845767,-5633.0,0.00037,117]
[391707560,1760737845776,-1261.12,0.00037088,120]
[391707563,1760737845785,-185.99819028,0.000372,120]
[391707565,1760737845795,-185.99819026,0.000372,120]
[391707567,1760737845804,-185.99819026,0.000372,120]
[391707569,1760737845813,-17111.4134519,0.00037222,3]
[391707571,1760737845822,-153.0,0.000373,120]
[391707573,1760737845832,-816.79788433,0.00037527,2]
[391707575,1760737845842,-152.0,0.00037635,3]
[391707577,1760737845850,-500.0,0.0003774,2]
[391707579,1760737845860,-151.0,0.000378,120]
[391707581,1760737845869,-1076.6084952,0.0003805,30]
[391707583,1760737845878,-11097.9012336,0.00038057,3]
[391707585,1760737845888,-1000.0,0.00038067,2]
[391707587,1760737845896,-153.0,0.000382,120]
[391707589,1760737845906,-522.26,0.00038355,17]
[391707591,1760737845915,-500.0,0.00038355,2]
[391707593,1760737845924,-5637.775,0.00038356,6]
[391707595,1760737845933,-474.79,0.00038458,2]
[391707597,1760737845942,-1262.88,0.00038458,2]
[391707599,1760737845951,-2000.0,0.000386,2]
[391707601,1760737845960,-11097.9012336,0.00038702,3]
[391707603,1760737845969,-17111.4134519,0.00038712,3]
[391707605,1760737845978,-8541.10659745,0.00038722,120]
[391707607,1760737845987,-160.0,0.00039,120]
[391707609,1760737845996,-185.99819026,0.00039065,120]
[391707611,1760737846005,-153.0,0.000391,120]
[391707613,1760737846014,-500.0,0.0003911,2]
[391707614,1760737846023,-1129.45072896,0.0003915,32]
[391707616,1760737846032,-3531.56,0.00039484,2]
[391707618,1760737846041,-11097.9012336,0.00039491,3]
[391707620,1760737846050,-151.0,0.000395,120]
[391707622,1760737846060,-1034.63,0.000396,7]
[391707624,1760737846068,-5000.0,0.00039639,2]
[391707626,1760737846077,-17111.4134519,0.00039888,3]
[391707628,1760737846088,-11097.9012336,0.00039888,3]
[391707630,1760737846098,-17111.4134519,0.00039898,3]
[391707632,1760737846107,-22195.8024672,0.00039898,3]
[391707634,1760737846116,-625.813,0.00039899,30]
[391707636,1760737846125,-1000.0,0.00039899,90]
[391707638,1760737846135,-1000.0,0.00039899,90]
[391707640,1760737846144,-1000.0,0.00039899,90]
[391707642,1760737846152,-1000.0,0.00039899,90]
[391707644,1760737846162,-1000.0,0.00039899,90]
[391707660,1760737846171,-151.45790441,0.00039899,13]
[391707663,1760737846316,-1592.18,0.00039908,120]
[391707665,1760737846325,-1592.18,0.00039908,120]
[391707667,1760737846335,-1592.18,0.00039908,120]
[391707669,1760737846344,-1592.18,0.00039908,120]
[391707671,1760737846353,-1592.18,0.00039908,120]
[391707673,1760737846362,-1592.18,0.00039908,120]
[391707675,1760737846371,-1592.18,0.00039908,120]
[391707677,1760737846380,-1592.18,0.00039908,120]
[391707679,1760737846390,-1592.18,0.00039908,120]
[391707681,1760737846399,-1592.18,0.00039908,120]
[391707683,1760737846408,-1592.18,0.00039908,120]
[391707685,1760737846419,-1592.18,0.00039908,120]
[391707687,1760737846429,-1592.18,0.00039908,120]
[391707689,1760737846438,-1592.18,0.00039908,120]
[391707691,1760737846447,-1592.18,0.00039908,120]
[391707693,1760737846456,-1592.18,0.00039908,120]
[391707695,1760737846465,-1592.18,0.00039908,120]
[391707697,1760737846474,-1592.18,0.00039908,120]
[391707699,1760737846483,-1592.18,0.00039908,120]
[391707701,1760737846493,-1592.18,0.00039908,120]
[391707703,1760737846502,-1592.18,0.00039908,120]
[391707705,1760737846511,-1592.18,0.00039908,120]
[391707707,1760737846521,-1592.18,0.00039908,120]
[391707709,1760737846530,-1592.41016389,0.00039908,120]
[391707711,1760737846543,-11097.9012336,0.00039979,3]
[391707713,1760737846552,-17111.4134519,0.00039989,3]
[391707715,1760737846561,-200.0,0.0003999,120]
[391707717,1760737846570,-424.45192454,0.00039999,31]
[391707719,1760737846579,-500.0,0.00039999,31]
[391707721,1760737846588,-637.34393449,0.00039999,2]
[391707723,1760737846597,-500.0,0.00039999,31]
[391707725,1760737846607,-500.0,0.00039999,31]
[391707727,1760737846616,-500.0,0.00039999,31]
[391707729,1760737846625,-500.0,0.00039999,31]
[391707731,1760737846635,-500.0,0.00039999,31]
[391707733,1760737846644,-375.77630441,0.00039999,31]
[391707735,1760737846653,-375.08625604,0.00039999,31]
[391707737,1760737846663,-249.88839446,0.00039999,31]
[391707739,1760737846672,-500.0,0.00039999,31]
[391707741,1760737846681,-157.43725332,0.00039999,31]
[391707743,1760737846690,-507.47165617,0.00039999,31]
[391707745,1760737846699,-475.6557911,0.0004,120]
[391707747,1760737846709,-250.15,0.0004,120]
[391707749,1760737846718,-292.5998,0.0004,120]
[391707751,1760737846727,-2000.0,0.0004,2]
[391707753,1760737846736,-1443.99999999,0.0004,120]
[391707755,1760737846745,-153.0,0.0004,120]
[391707757,1760737846755,-159.03138799,0.00040054,15]
[391707759,1760737846764,-816.79788433,0.00040128,15]
[391707761,1760737846773,-199.0,0.00040221,7]
[391707763,1760737846782,-500.0,0.00040221,120]
[391707765,1760737846791,-500.0,0.00040221,17]
[391707767,1760737846801,-500.0,0.00040221,17]
[391707769,1760737846810,-500.0,0.00040221,17]
[391707771,1760737846819,-500.0,0.00040221,17]
[391707773,1760737846828,-1182.36509397,0.00040249,35]
[391707775,1760737846837,-619.66353557,0.00040479,2]
[391707777,1760737846847,-199.0,0.00040495,8]
[391707778,1760737846856,-11097.9012336,0.00040547,3]
[391707781,1760737846866,-199.0,0.00040769,9]
[391707782,1760737846875,-2958.0,0.00040867,7]
[391707784,1760737846884,-1326.0,0.0004087,30]
[391707786,1760737846893,-150.0,0.00040882,7]
[391707789,1760737846903,-150.0,0.00040882,7]
[391707791,1760737846912,-170.84253803,0.00040882,7]
[391707793,1760737846922,-150.0,0.00040882,7]
[391707794,1760737846931,-150.0,0.00040882,7]
[391707797,1760737846940,-327.95425729,0.00040882,7]
[391707798,1760737846949,-150.0,0.00040882,7]
[391707800,1760737846959,-150.0,0.00040882,7]
[391707802,1760737846968,-150.0,0.00040882,7]
[391707804,1760737846977,-150.0,0.00040882,7]
[391707807,1760737846986,-150.0,0.00040882,7]
[391707809,1760737846995,-150.0,0.00040882,7]
[391707811,1760737847005,-161.90960499,0.00040882,7]
[391707812,1760737847015,-150.0,0.00040882,7]
[391707814,1760737847024,-150.0,0.00040882,7]
[391707817,1760737847034,-150.0,0.00040882,7]
[391707819,1760737847043,-150.0,0.00040882,7]
[391707821,1760737847052,-150.0,0.00040882,7]
[391707823,1760737847062,-150.0,0.00040882,7]
[391707825,1760737847071,-191.76523301,0.000409,120]
[391707827,1760737847080,-153.0,0.000409,120]
[391707829,1760737847089,-11097.9012336,0.00040905,3]
[391707831,1760737847099,-17111.4134519,0.00040915,3]
[391707833,1760737847108,-22195.8024672,0.00040915,3]
[391707835,1760737847118,-51334.2403558,0.00040925,3]
[391707837,1760737847127,-55489.506168,0.00040925,3]
[391707839,1760737847137,-158.05476268,0.00040925,7]
[391707841,1760737847146,-170.84253803,0.00040928,7]
[391707843,1760737847155,-327.95425729,0.00040928,7]
[391707845,1760737847165,-150.0,0.00040934,7]
[391707847,1760737847175,-500.0,0.00040934,2]
[391707849,1760737847185,-102668.480712,0.00040935,3]
[391707851,1760737847194,-88783.2098687,0.00040935,3]
[391707853,1760737847204,-151.0,0.00040942,14]
[391707855,1760737847213,-500.0,0.00040944,2]
[391707857,1760737847222,-15626.26915724,0.00040945,2]
[391707895,1760737847682,-164.70484905,0.0002,2]
[391707897,1760737847691,-150.0,0.000335,3]
[391707899,1760737847701,-500.0,0.0003511,4]
[391707901,1760737847710,-500.0,0.00035164,4]
[391707903,1760737847720,-500.0,0.00035219,4]
[391707905,1760737847729,-500.0,0.00035274,4]
[391707907,1760737847739,-300.0,0.0003574,3]
[391707909,1760737847748,-17895.78447052,0.00040945,2]
[391707912,1760737847769,-9046.65500336,0.00040945,2]
[391707941,1760737848021,-153.0,0.00029229,2]
[391707943,1760737848032,-517.4083157,0.00040945,2]
[391707945,1760737848043,-302.0,0.00040945,2]
[391708556,1760737862563,500.0,0.00022,120]
[391708557,1760737862597,200.0,0.00032042,120]
[391708558,1760737862657,158.25,0.000201,120]
[391708572,1760737963620,214.5,0.00032039,30]
[391708573,1760737990815,2203.321203,0.00032039,120]
[391708575,1760738164702,200.0,0.00032039,120]
[391708578,1760738326884,167.64,0.00011545,2]
[391708582,1760738462108,200.0,0.00032074,120]
[391708586,1760738537450,5000.0,0.00032074,30]
[391708592,1760738761060,200.0,0.00032083,120]
[391708605,1760739032057,-372.13,0.00013699,2]
[391708606,1760739032067,-167.64,0.00014431,2]
[391708608,1760739032076,-250.0,0.00015068,2]
[391708610,1760739032086,-198.06,0.00016712,2]
[391708611,1760739032095,-250.0,0.00017,2]
[391708613,1760739032105,-167.64,0.00017317,2]
[391708615,1760739032114,-300.0,0.00017999,2]
[391708616,1760739032123,-58.92511108,0.00019,2]
[391708617,1760739032135,-241.07488892,0.00019,2]
[391708618,1760739032145,-160.0,0.00019605,2]
[391708619,1760739032154,-257.17511108,0.00019899,2]
[391708620,1760739032165,-338.41,0.00019899,2]
[391708621,1760739032176,-1885.41458992,0.00019899,2]
[391708622,1760739032185,-300.0,0.00019999,2]
[391708623,1760739032194,-230.74094221,0.0002,2]
[391708624,1760739032203,-204.22491195,0.0002,2]
[391708625,1760739032212,-163.51521852,0.0002,2]
[391708626,1760739032221,-2527.04830574,0.0002,2]
[391708627,1760739032231,-427.455,0.0002,2]
[391708628,1760739032257,-67.71886867,0.0002,2]
[391708629,1760739032267,-402.20060173,0.0002,2]
[391708630,1760739032276,-500.0,0.000201,2]
[391708631,1760739032285,-172.56206533,0.000201,2]
[391708632,1760739032294,-372.13,0.00020187,2]
[391708633,1760739032304,-230.74094221,0.000202,2]
[391708634,1760739032314,-3022.22217441,0.000202,2]
[391708635,1760739032323,-402.20060173,0.000202,2]
[391708636,1760739032332,-167.64,0.00020203,2]
[391708637,1760739032341,-3022.22217441,0.000204,2]
[391708638,1760739032350,-402.20060173,0.000204,2]
[391708639,1760739032360,-1100.0,0.00020599,2]
[391708640,1760739032368,-445.47347781,0.000206,2]
[391708641,1760739032380,-666.0,0.000206,2]
[391708642,1760739032391,-1910.7486966,0.000206,2]
[391708643,1760739032400,-402.20060173,0.000206,2]
[391708644,1760739032409,-500.0,0.00020648,2]
[391708645,1760739032418,-353.87090813,0.000208,2]
[391708646,1760739032436,-2668.35126628,0.000208,2]
[391708647,1760739032446,-402.20060173,0.000208,2]
[391708650,1760739032455,-300.0,0.00020849,2]
[391708652,1760739032465,-350.0,0.00021,2]
[391708654,1760739032474,-17.98371757,0.000211,2]
[391708856,1760739038230,-2587.48842092,0.000211,2]
[391708857,1760739038246,-281.28342,0.000211,2]
[391708858,1760739038258,-135.46661592,0.000211,2]
[391708859,1760739038267,-1598.39646717,0.000213,2]
[391708863,1760739040072,-1423.82570724,0.000213,2]
[391708864,1760739040083,-500.0,0.00021425,2]
[391708865,1760739040094,-3022.22217441,0.000215,2]
[391708866,1760739040103,-345.0,0.00021567,2]
[391708867,1760739040112,-3022.22217441,0.000217,2]
[391708868,1760739040121,-3022.22217441,0.000219,2]
[391708869,1760739040130,-170.67904903,0.0002217,2]
[391708870,1760739040140,-164.65,0.00022685,2]
[391708871,1760739040149,-421.66,0.00022762,30]
[391708872,1760739040158,-197.80673614,0.00023,2]
[391708873,1760739040167,-400.0,0.00023,2]
[391708874,1760739040176,-200.0,0.00023089,2]
[391708875,1760739040185,-167.64,0.00023089,2]
[391708876,1760739040194,-214.7818248,0.00023161,2]
[391708877,1760739040203,-197.80673614,0.000232,2]
[391708878,1760739040212,-259.15178902,0.00024152,2]
[391708879,1760739040220,-502.52038396,0.00024439,2]
[391708880,1760739040229,-164.65,0.00024954,2]
[391708881,1760739040238,-1012.96,0.00025,2]
[391708882,1760739040247,-2372.8,0.00025082,2]
[391708883,1760739040256,-303.74518669,0.00025144,2]
[391708884,1760739040265,-5000.0,0.00025145,2]
[391708885,1760739040275,-5000.0,0.00025185,2]
[391708886,1760739040285,-675.63,0.00025207,2]
[391708887,1760739040294,-2799.96,0.00025215,2]
[391708888,1760739040303,-2324.61,0.00025265,2]
[391708889,1760739040311,-2719.98,0.00025297,2]
[391708890,1760739040321,-5000.0,0.00025299,2]
[391708891,1760739040330,-579.70992527,0.00025305,2]
[391708892,1760739040339,-25000.0,0.00025306,2]
[391708893,1760739040349,-992.79,0.00025337,2]
[391708894,1760739040358,-2328.91,0.0002535,2]
[391708895,1760739040368,-500.0,0.00025373,2]
[391708896,1760739040377,-562.5287038,0.00025373,2]
[391708897,1760739040386,-500.0,0.00025373,2]
[391708898,1760739040395,-500.0,0.00025373,2]
[391708899,1760739040404,-500.0,0.00025373,2]
[391708900,1760739040413,-5000.0,0.00025384,2]
[391708901,1760739040422,-5000.0,0.00025444,2]
[391708902,1760739040431,-5000.0,0.00025462,2]
[391708903,1760739040441,-2270.73,0.00025474,2]
[391708904,1760739040450,-1826.47,0.00025499,2]
[391708905,1760739040459,-1012.96,0.000255,2]
[391708906,1760739040468,-3594.81602738,0.00025509,2]
[391708907,1760739040477,-5000.0,0.00025522,2]
[391708909,1760739040486,-1324.25,0.00025522,2]
[391708910,1760739040495,-5000.0,0.00025538,2]
[391708912,1760739040504,-263.41317111,0.00025573,2]
[391708914,1760739040513,-500.0,0.00025573,2]
[391708915,1760739040522,-500.0,0.00025573,2]
[391708916,1760739040531,-500.0,0.00025573,2]
[391708918,1760739040540,-1097.74,0.00025573,2]
[391708919,1760739040550,-5000.0,0.00025581,2]
[391708920,1760739040559,-153.0,0.00025599,2]
[391708921,1760739040568,-153.0,0.00025599,2]
[391708922,1760739040577,-153.0,0.00025599,2]
[391708923,1760739040587,-153.0,0.00025599,2]
[391708924,1760739040596,-153.0,0.00025599,2]
[391708925,1760739040606,-153.0,0.00025599,2]
[391708926,1760739040615,-153.0,0.00025599,2]
[391708927,1760739040624,-153.0,0.00025599,2]
[391708928,1760739040632,-153.0,0.00025599,2]
[391708930,1760739040647,-153.0,0.00025599,2]
[391708931,1760739040657,-153.0,0.00025599,2]
[391708932,1760739040666,-153.0,0.00025599,2]
[391708933,1760739040677,-153.0,0.00025599,2]
[391708934,1760739040687,-153.0,0.00025599,2]
[391708935,1760739040699,-153.0,0.00025599,2]
[391708936,1760739040708,-153.0,0.00025599,2]
[391708937,1760739040719,-153.0,0.00025599,2]
[391708938,1760739040729,-153.0,0.00025599,2]
[391708939,1760739040740,-153.0,0.00025599,2]
[391708940,1760739040750,-153.0,0.00025599,2]
[391708941,1760739040759,-153.0,0.00025599,2]
[391708942,1760739040768,-153.0,0.00025599,2]
[391708943,1760739040777,-5000.0,0.00025604,2]
[391708944,1760739040786,-19003.16,0.00025609,2]
[391708945,1760739040795,-500.0,0.00025673,2]
[391708946,1760739040804,-344.58701757,0.00025673,2]
[391708947,1760739040813,-5000.0,0.00025713,2]
[391708948,1760739040822,-1000.0,0.00025728,2]
[391708949,1760739040832,-2500.0,0.00025728,2]
[391708950,1760739040847,-176.81,0.00025733,2]
[391708951,1760739040856,-5000.0,0.00025776,2]
[391708952,1760739040866,-250.0,0.0002581,2]
[391708953,1760739040875,-25000.0,0.00025828,2]
[391708954,1760739040884,-1097.74,0.00025847,2]
[391708955,1760739040893,-1703.3,0.00025859,2]
[391708956,1760739040902,-500.0,0.00025873,2]
[391708957,1760739040911,-456.8451738,0.00025873,2]
[391708958,1760739040921,-500.0,0.00025873,2]
[391708959,1760739040930,-500.0,0.00025873,2]
[391708960,1760739040943,-500.0,0.00025873,2]
[391708961,1760739040952,-500.0,0.00025873,2]
[391708962,1760739040961,-500.0,0.00025873,2]
[391708963,1760739040970,-500.0,0.00025873,2]
[391708964,1760739040979,-500.0,0.00025873,2]
[391708965,1760739040989,-500.0,0.00025873,2]
[391708966,1760739040999,-500.0,0.00025873,2]
[391708967,1760739041008,-500.0,0.00025873,2]
[391708968,1760739041019,-5000.0,0.00025873,2]
[391708969,1760739041028,-5000.0,0.00025898,2]
[391708970,1760739041037,-500.0,0.00026058,5]
[391708971,1760739041046,-500.0,0.0002612,2]
[391708972,1760739041055,-1000.0,0.00026121,2]
[391708973,1760739041064,-1000.0,0.00026121,2]
[391708974,1760739041073,-500.0,0.00026121,2]
[391708975,1760739041084,-1097.74,0.00026121,2]
[391708976,1760739041093,-348.53075734,0.00026135,4]
[391708977,1760739041103,-1000.0,0.00026221,2]
[391708978,1760739041112,-5798.584,0.00026301,13]
[391708979,1760739041121,-375.058,0.00026301,13]
[391708980,1760739041131,-500.0,0.00026332,5]
[391708981,1760739041140,-1097.74,0.00026395,2]
[391708982,1760739041149,-500.0,0.00026421,2]
[391708983,1760739041158,-1000.0,0.00026421,2]
[391708984,1760739041168,-1000.0,0.00026421,2]
[391708985,1760739041177,-1000.0,0.00026421,2]
[391708986,1760739041187,-1000.0,0.00026421,2]
[391708987,1760739041196,-1000.0,0.00026421,2]
[391708988,1760739041205,-1000.0,0.00026421,2]
[391708989,1760739041215,-1000.0,0.00026421,2]
[391708990,1760739041224,-1000.0,0.00026421,2]
[391708991,1760739041233,-1000.0,0.00026421,2]
[391708992,1760739041242,-500.0,0.00026606,5]
[391708993,1760739041251,-1097.74,0.00026668,2]
[391708994,1760739041260,-280.89544369,0.00026668,2]
[391708995,1760739041269,-933.95445627,0.00026668,2]
[391708996,1760739041278,-500.0,0.00026675,2]
[391708997,1760739041287,-372.13,0.00026676,2]
[391708998,1760739041296,-1500.0,0.00026768,2]
[391708999,1760739041305,-475.6557911,0.00026814,2]
[391709000,1760739041318,-500.0,0.00026879,5]
[391709001,1760739041331,-1097.74,0.00026942,2]
[391709002,1760739041344,-843.80181479,0.00026968,2]
[391709003,1760739041355,-230.17227971,0.00026968,2]
[391709004,1760739041365,-1500.0,0.00026968,2]
[391709005,1760739041376,-425.27029124,0.00026968,2]
[391709006,1760739041389,-1345.55723194,0.00026968,2]
[391709007,1760739041401,-1500.0,0.00026968,2]
[391709008,1760739041413,-280.80771569,0.00026968,2]
[391709009,1760739041425,-393.48502427,0.00027126,7]
[391709010,1760739041438,-500.0,0.00027153,5]
[391709011,1760739041450,-1097.74,0.00027216,2]
[391709012,1760739041461,-164.65,0.00027222,2]
[391709013,1760739041472,-730.64870774,0.00027316,2]
[391709014,1760739041483,-951.375,0.00027397,2]
[391709015,1760739041494,-500.0,0.00027427,10]
[391709016,1760739041507,-1097.74,0.0002749,7]
[391709017,1760739041520,-1004.36850196,0.00027516,5]
[391709018,1760739041532,-2000.0,0.00027516,5]
[391709019,1760739041544,-3594.81602736,0.00027664,2]
[391709020,1760739041556,-500.0,0.00027701,10]
[391709021,1760739041569,-421.66,0.00027744,30]
[391709022,1760739041581,-1097.74,0.00027764,7]
[391709023,1760739041594,-500.0,0.00027975,10]
[391709024,1760739041605,-1097.74,0.00028038,7]
[391709025,1760739041619,-2500.0,0.00028064,5]
[391709026,1760739041631,-150.13,0.00028115,10]
[391709027,1760739041644,-438.589695,0.00028118,9]
[391709028,1760739041655,-150.04,0.0002823,10]
[391709029,1760739041667,-500.0,0.00028249,10]
[391709030,1760739041678,-1097.74,0.00028312,7]
[391709031,1760739041691,-150.11,0.00028322,10]
[391709032,1760739041703,-150.08,0.00028451,10]
[391709033,1760739041717,-150.0,0.00028465,10]
[391709034,1760739041728,-150.07,0.00028481,10]
[391709035,1760739041740,-500.0,0.00028523,10]
[391709036,1760739041752,-500.0,0.00028573,5]
[391709037,1760739041762,-500.0,0.00028573,5]
[391709038,1760739041773,-500.0,0.00028573,5]
[391709039,1760739041783,-500.0,0.00028573,5]
[391709040,1760739041795,-500.0,0.00028573,5]
[391709041,1760739041809,-500.0,0.00028573,5]
[391709042,1760739041820,-1097.8080262,0.00028586,7]
[391709043,1760739041830,-2919.01725035,0.00028612,5]
[391709044,1760739041841,-150.0,0.000287,5]
[391709045,1760739041851,-500.0,0.00028797,10]
[391709046,1760739041864,-150.09,0.00028811,10]
[391709047,1760739041877,-153.0,0.0002883,2]
[391709048,1760739041888,-153.0,0.0002883,2]
[391709049,1760739041900,-153.0,0.0002883,2]
[391709050,1760739041910,-153.0,0.0002883,2]
[391709051,1760739041921,-153.0,0.0002883,2]
[391709052,1760739041931,-153.0,0.0002883,2]
[391709053,1760739041946,-153.0,0.0002883,2]
[391709054,1760739041957,-153.0,0.0002883,2]
[391709055,1760739041967,-153.0,0.0002883,2]
[391709056,1760739041979,-153.0,0.0002883,2]
[391709057,1760739041991,-153.0,0.0002883,2]
[391709058,1760739042002,-153.0,0.0002883,2]
[391709059,1760739042016,-153.0,0.0002883,2]
[391709060,1760739042027,-153.0,0.0002883,2]
[391709061,1760739042038,-153.0,0.0002883,2]
[391709062,1760739042049,-153.0,0.0002883,2]
[391709063,1760739042059,-153.0,0.0002883,2]
[391709064,1760739042071,-153.0,0.0002883,2]
[391709065,1760739042081,-153.0,0.0002883,2]
[391709066,1760739042093,-153.0,0.0002883,2]
[391709067,1760739042103,-153.0,0.0002883,2]
[391709068,1760739042114,-153.0,0.0002883,2]
[391709069,1760739042125,-153.0,0.0002883,2]
[391709070,1760739042138,-153.0,0.0002883,2]
[391709071,1760739042149,-153.0,0.0002883,2]
[391709072,1760739042162,-269.0,0.0002883,2]
[391709073,1760739042181,-269.0,0.0002883,2]
[391709074,1760739042192,-269.0,0.0002883,2]
[391709075,1760739042202,-269.0,0.0002883,2]
[391709076,1760739042216,-269.0,0.0002883,2]
[391709077,1760739042231,-269.0,0.0002883,2]
[391709078,1760739042242,-269.0,0.0002883,2]
[391709079,1760739042252,-269.0,0.0002883,2]
[391709080,1760739042263,-269.0,0.0002883,2]
[391709081,1760739042274,-269.0,0.0002883,2]
[391709082,1760739042285,-269.0,0.0002883,2]
[391709083,1760739042308,-269.0,0.0002883,2]
[391709084,1760739042322,-153.0,0.0002883,2]
[391709085,1760739042336,-153.0,0.0002883,2]
[391709086,1760739042350,-153.0,0.0002883,2]
[391709087,1760739042363,-153.0,0.0002883,2]
[391709088,1760739042376,-153.0,0.0002883,2]
[391709089,1760739042389,-285.0,0.0002883,2]
[391709090,1760739042403,-285.0,0.0002883,2]
[391709091,1760739042415,-285.0,0.0002883,2]
[391709092,1760739042429,-285.0,0.0002883,2]
[391709093,1760739042441,-285.0,0.0002883,2]
[391709094,1760739042453,-285.0,0.0002883,2]
[391709095,1760739042466,-285.0,0.0002883,2]
[391709096,1760739042478,-285.0,0.0002883,2]
[391709097,1760739042489,-285.0,0.0002883,2]
[391709098,1760739042500,-285.0,0.0002883,2]
[391709099,1760739042512,-285.0,0.0002883,2]
[391709100,1760739042524,-285.0,0.0002883,2]
[391709101,1760739042535,-285.0,0.0002883,2]
[391709102,1760739042548,-153.0,0.0002883,2]
[391709103,1760739042562,-153.0,0.0002883,2]
[391709104,1760739042574,-153.0,0.0002883,2]
[391709105,1760739042585,-153.0,0.0002883,2]
[391709106,1760739042598,-153.0,0.0002883,2]
[391709107,1760739042609,-295.0,0.0002883,2]
[391709108,1760739042621,-295.0,0.0002883,2]
[391709109,1760739042633,-295.0,0.0002883,2]
[391709110,1760739042645,-295.0,0.0002883,2]
[391709111,1760739042657,-295.0,0.0002883,2]
[391709112,1760739042669,-295.0,0.0002883,2]
[391709113,1760739042681,-295.0,0.0002883,2]
[391709114,1760739042692,-295.0,0.0002883,2]
[391709115,1760739042703,-295.0,0.0002883,2]
[391709116,1760739042714,-295.0,0.0002883,2]
[391709117,1760739042726,-295.0,0.0002883,2]
[391709118,1760739042738,-295.0,0.0002883,2]
[391709119,1760739042750,-153.0,0.0002883,2]
[391709120,1760739042761,-153.0,0.0002883,2]
[391709121,1760739042773,-153.0,0.0002883,2]
[391709122,1760739042785,-153.0,0.0002883,2]
[391709123,1760739042797,-153.0,0.0002883,2]
[391709124,1760739042808,-153.0,0.00028831,2]
[391709125,1760739042819,-500.0,0.00029,5]
[391709126,1760739042831,-500.0,0.00029071,10]
[391709127,1760739042842,-483.83010662,0.00029109,11]
[391709129,1760739042854,-1000.0,0.00029121,5]
[391709130,1760739042864,-1000.0,0.00029121,5]
[391709132,1760739042876,-1000.0,0.00029121,5]
[391709134,1760739042887,-1000.0,0.00029121,5]
[391709137,1760739042898,-1000.0,0.00029121,5]
[391709139,1760739042910,-250.0,0.00029248,5]
[391709140,1760739042921,-500.0,0.00029345,10]
[391709141,1760739042933,-164.65,0.00029491,2]
[391709142,1760739042947,-1000.0,0.00029548,5]
[391709143,1760739042959,-500.0,0.00029619,10]
[391709144,1760739042970,-1500.0,0.00029669,5]
[391709145,1760739042983,-1413.68760025,0.00029669,5]